[Event "Titled Tuesday Blitz April 19 Late 2022"]
[White "Martinez Reyes, Pedro Ramon"]
[Black "Korchmar, Vasiliy"]
[WhiteFideId "3901807"]
[BlackFideId "24131750"]
[WhiteElo "2410"]
[BlackElo "2370"]
[Result "0-1"]
[Round "05"]
[TimeControl "180+1"]
[Date "2022.04.19"]
[WhiteClock "0:00:10"]
[BlackClock "0:00:05"]

1. g4 {[%clk 0:03:00]}  g6 {[%clk 0:02:59]} 2. h4 {[%clk 0:02:59]}  d5 {[%clk 0:02:47]} 3. g5 {[%clk 0:02:59]}  h5 {[%clk 0:02:41]} 4. Bg2 {[%clk 0:02:58]}  Bg7 {[%clk 0:02:41]} 5. c4 {[%clk 0:02:57]}  c6 {[%clk 0:02:41]} 6. cxd5 {[%clk 0:02:53]}  cxd5 {[%clk 0:02:42]} 7. Nc3 {[%clk 0:02:53]}  e6 {[%clk 0:02:35]} 8. Qa4+ {[%clk 0:02:38]}  Nc6 {[%clk 0:02:33]} 9. Nf3 {[%clk 0:02:34]}  Ne7 {[%clk 0:02:33]} 10. d4 {[%clk 0:02:34]}  O-O {[%clk 0:02:33]} 11. e3 {[%clk 0:02:30]}  Nf5 {[%clk 0:02:30]} 12. Qc2 {[%clk 0:02:12]}  Bd7 {[%clk 0:02:29]} 13. Qe2 {[%clk 0:02:11]}  Rc8 {[%clk 0:02:28]} 14. Bd2 {[%clk 0:02:11]}  a6 {[%clk 0:02:12]} 15. Kf1 {[%clk 0:01:47]}  b5 {[%clk 0:02:11]} 16. Kg1 {[%clk 0:01:47]}  b4 {[%clk 0:02:10]} 17. Nd1 {[%clk 0:01:44]}  Qb6 {[%clk 0:02:10]} 18. Rc1 {[%clk 0:01:41]}  Na5 {[%clk 0:02:05]} 19. b3 {[%clk 0:01:38]}  Bb5 {[%clk 0:02:03]} 20. Qe1 {[%clk 0:01:38]}  Rxc1 {[%clk 0:01:56]} 21. Bxc1 {[%clk 0:01:38]}  Rc8 {[%clk 0:01:47]} 22. Bd2 {[%clk 0:01:36]}  Rc2 {[%clk 0:01:39]} 23. Bxb4 {[%clk 0:01:35]}  Rxa2 {[%clk 0:01:39]} 24. Nc3 {[%clk 0:01:33]}  Rc2 {[%clk 0:01:06]} 25. Nxb5 {[%clk 0:01:33]}  Nxb3 {[%clk 0:01:07]} 26. Bf1 {[%clk 0:00:56]}  Rc1 {[%clk 0:00:39]} 27. Qe2 {[%clk 0:00:53]}  Qxb5 {[%clk 0:00:35]} 28. Qxb5 {[%clk 0:00:52]}  axb5 {[%clk 0:00:36]} 29. Kg2 {[%clk 0:00:50]}  Rc2 {[%clk 0:00:25]} 30. Ne1 {[%clk 0:00:23]}  Rc8 {[%clk 0:00:24]} 31. Bd3 {[%clk 0:00:18]}  Rb8 {[%clk 0:00:17]} 32. Nc2 {[%clk 0:00:17]}  Bf8 {[%clk 0:00:17]} 33. Rb1 {[%clk 0:00:17]}  Bxb4 {[%clk 0:00:16]} 34. Rxb3 {[%clk 0:00:17]}  Bd6 {[%clk 0:00:14]} 35. Rxb5 {[%clk 0:00:17]}  Nxh4+ {[%clk 0:00:14]} 36. Kh3 {[%clk 0:00:17]}  Rxb5 {[%clk 0:00:14]} 37. Bxb5 {[%clk 0:00:17]}  Nf3 {[%clk 0:00:14]} 38. Bd3 {[%clk 0:00:12]}  Nxg5+ {[%clk 0:00:14]} 39. Kg2 {[%clk 0:00:13]}  Nh7 {[%clk 0:00:13]} 40. f4 {[%clk 0:00:13]}  Nf6 {[%clk 0:00:13]} 41. Ne1 {[%clk 0:00:13]}  Ng4 {[%clk 0:00:13]} 42. Kf3 {[%clk 0:00:13]}  Nh2+ {[%clk 0:00:13]} 43. Kg2 {[%clk 0:00:14]}  Ng4 {[%clk 0:00:13]} 44. Kf3 {[%clk 0:00:14]}  Kg7 {[%clk 0:00:14]} 45. Ng2 {[%clk 0:00:15]}  Bb4 {[%clk 0:00:12]} 46. Nh4 {[%clk 0:00:15]}  Bd2 {[%clk 0:00:11]} 47. Ng2 {[%clk 0:00:16]}  Bc1 {[%clk 0:00:11]} 48. Ke2 {[%clk 0:00:16]}  Nf6 {[%clk 0:00:10]} 49. Kf3 {[%clk 0:00:16]}  Ba3 {[%clk 0:00:10]} 50. Nh4 {[%clk 0:00:17]}  Be7 {[%clk 0:00:10]} 51. Ng2 {[%clk 0:00:17]}  Ne8 {[%clk 0:00:10]} 52. Bc2 {[%clk 0:00:17]}  Nd6 {[%clk 0:00:11]} 53. Bd3 {[%clk 0:00:17]}  Nc4 {[%clk 0:00:11]} 54. Ne1 {[%clk 0:00:16]}  Nd2+ {[%clk 0:00:11]} 55. Ke2 {[%clk 0:00:15]}  Nc4 {[%clk 0:00:11]} 56. Ng2 {[%clk 0:00:16]}  h4 {[%clk 0:00:11]} 57. Ne1 {[%clk 0:00:16]}  h3 {[%clk 0:00:11]} 58. Bxc4 {[%clk 0:00:14]}  dxc4 {[%clk 0:00:11]} 59. Kf3 {[%clk 0:00:15]}  Bh4 {[%clk 0:00:09]} 60. Nc2 {[%clk 0:00:15]}  Kf6 {[%clk 0:00:09]} 61. e4 {[%clk 0:00:15]}  Ke7 {[%clk 0:00:09]} 62. Ne3 {[%clk 0:00:15]}  c3 {[%clk 0:00:09]} 63. d5 {[%clk 0:00:15]}  Kd6 {[%clk 0:00:08]} 64. dxe6 {[%clk 0:00:15]}  fxe6 {[%clk 0:00:09]} 65. f5 {[%clk 0:00:10]}  gxf5 {[%clk 0:00:08]} 66. exf5 {[%clk 0:00:11]}  exf5 {[%clk 0:00:08]} 67. Nxf5+ {[%clk 0:00:12]}  Kc5 {[%clk 0:00:07]} 68. Ne3 {[%clk 0:00:13]}  Kd4 {[%clk 0:00:06]} 69. Nc2+ {[%clk 0:00:13]}  Kd3 {[%clk 0:00:06]} 70. Nb4+ {[%clk 0:00:14]}  Kd2 {[%clk 0:00:06]} 71. Na2 {[%clk 0:00:11]}  c2 {[%clk 0:00:06]} 72. Kg4 {[%clk 0:00:11]}  h2 {[%clk 0:00:06]} 73. Nb4 {[%clk 0:00:09]}  h1=Q {[%clk 0:00:05]} 74. Nd3 {[%clk 0:00:10]} 0-1


[Site "https://www.chess.com"]

[Event "Titled Tuesday Blitz April 19 Late 2022"]
[White "Mikhalsky, Vladimir"]
[Black "Ricaurte Lopez, Juan Carlos"]
[WhiteFideId "14144352"]
[BlackFideId "3600327"]
[WhiteElo "2301"]
[BlackElo "2209"]
[Result "1-0"]
[Round "05"]
[TimeControl "180+1"]
[Date "2022.04.19"]
[WhiteClock "0:00:07"]
[BlackClock "0:00:01"]

1. c4 {[%clk 0:02:59]}  e5 {[%clk 0:02:58]} 2. Nc3 {[%clk 0:02:59]}  Nf6 {[%clk 0:02:58]} 3. g3 {[%clk 0:02:58]}  c6 {[%clk 0:02:56]} 4. d4 {[%clk 0:02:57]}  exd4 {[%clk 0:02:53]} 5. Qxd4 {[%clk 0:02:56]}  d5 {[%clk 0:02:52]} 6. Bg2 {[%clk 0:02:53]}  Be7 {[%clk 0:02:36]} 7. cxd5 {[%clk 0:02:43]}  O-O {[%clk 0:02:35]} 8. e4 {[%clk 0:02:17]}  cxd5 {[%clk 0:02:33]} 9. exd5 {[%clk 0:02:17]}  Nc6 {[%clk 0:02:33]} 10. Qc4 {[%clk 0:02:06]}  Nb4 {[%clk 0:02:30]} 11. Qb3 {[%clk 0:01:59]}  Bf5 {[%clk 0:02:27]} 12. Rb1 {[%clk 0:01:43]}  Bxb1 {[%clk 0:02:24]} 13. Nxb1 {[%clk 0:01:43]}  Nbxd5 {[%clk 0:02:17]} 14. Ne2 {[%clk 0:01:40]}  Bb4+ {[%clk 0:02:15]} 15. Nbc3 {[%clk 0:01:38]}  Bxc3+ {[%clk 0:02:12]} 16. bxc3 {[%clk 0:01:38]}  Re8 {[%clk 0:02:09]} 17. Bf3 {[%clk 0:01:35]}  Qa5 {[%clk 0:01:46]} 18. O-O {[%clk 0:01:33]}  Ne4 {[%clk 0:01:44]} 19. c4 {[%clk 0:01:27]}  Nb6 {[%clk 0:01:31]} 20. Nf4 {[%clk 0:01:07]}  Rac8 {[%clk 0:01:19]} 21. Nd5 {[%clk 0:00:55]}  Nxc4 {[%clk 0:01:09]} 22. Qxb7 {[%clk 0:00:54]}  Ncd2 {[%clk 0:01:07]} 23. Ne7+ {[%clk 0:00:40]}  Kf8 {[%clk 0:01:05]} 24. Bxd2 {[%clk 0:00:33]}  Nxd2 {[%clk 0:01:01]} 25. Nxc8 {[%clk 0:00:29]}  Nxf3+ {[%clk 0:00:58]} 26. Qxf3 {[%clk 0:00:25]}  Rxc8 {[%clk 0:00:56]} 27. Qb7 {[%clk 0:00:23]}  Qc7 {[%clk 0:00:52]} 28. Qb4+ {[%clk 0:00:22]}  Kg8 {[%clk 0:00:50]} 29. Re1 {[%clk 0:00:22]}  g6 {[%clk 0:00:49]} 30. Re7 {[%clk 0:00:20]}  Qc1+ {[%clk 0:00:42]} 31. Kg2 {[%clk 0:00:20]}  a6 {[%clk 0:00:38]} 32. Qb7 {[%clk 0:00:18]}  Qc6+ {[%clk 0:00:36]} 33. Qxc6 {[%clk 0:00:18]}  Rxc6 {[%clk 0:00:35]} 34. Ra7 {[%clk 0:00:18]}  h5 {[%clk 0:00:33]} 35. h4 {[%clk 0:00:18]}  Kg7 {[%clk 0:00:33]} 36. Kf3 {[%clk 0:00:18]}  Kf6 {[%clk 0:00:33]} 37. Kf4 {[%clk 0:00:18]}  Ke6 {[%clk 0:00:32]} 38. Kg5 {[%clk 0:00:18]}  Rc5+ {[%clk 0:00:27]} 39. Kh6 {[%clk 0:00:18]}  Ra5 {[%clk 0:00:26]} 40. Kg7 {[%clk 0:00:16]}  Rxa2 {[%clk 0:00:22]} 41. Rxf7 {[%clk 0:00:17]}  a5 {[%clk 0:00:19]} 42. Rf6+ {[%clk 0:00:17]}  Ke7 {[%clk 0:00:18]} 43. Kxg6 {[%clk 0:00:16]}  a4 {[%clk 0:00:18]} 44. Kg5 {[%clk 0:00:12]}  a3 {[%clk 0:00:16]} 45. Rf3 {[%clk 0:00:09]}  Ra1 {[%clk 0:00:13]} 46. Kxh5 {[%clk 0:00:08]}  Ke6 {[%clk 0:00:06]} 47. Kg4 {[%clk 0:00:07]}  Ke5 {[%clk 0:00:02]} 48. h5 {[%clk 0:00:07]}  Ke4 {[%clk 0:00:01]} 49. Rb3 {[%clk 0:00:07]} 1-0


[Site "https://www.chess.com"]

[Event "Titled Tuesday Blitz April 19 Late 2022"]
[White "Miszler, Levente"]
[Black "Bongo Akanga Ndjila, Barthelemy"]
[WhiteFideId "763276"]
[BlackFideId "10609431"]
[WhiteElo "1966"]
[BlackElo "1768"]
[Result "1-0"]
[Round "05"]
[TimeControl "180+1"]
[Date "2022.04.19"]
[WhiteClock "0:02:10"]
[BlackClock "0:01:03"]

1. Nf3 {[%clk 0:03:00]}  Nf6 {[%clk 0:02:58]} 2. c4 {[%clk 0:03:00]}  g6 {[%clk 0:02:58]} 3. g3 {[%clk 0:03:00]}  Bg7 {[%clk 0:02:58]} 4. Bg2 {[%clk 0:03:01]}  d6 {[%clk 0:02:58]} 5. O-O {[%clk 0:03:02]}  O-O {[%clk 0:02:59]} 6. Nc3 {[%clk 0:03:02]}  e5 {[%clk 0:02:59]} 7. d3 {[%clk 0:03:01]}  Nc6 {[%clk 0:02:48]} 8. Rb1 {[%clk 0:02:57]}  a5 {[%clk 0:02:46]} 9. a3 {[%clk 0:02:56]}  Rb8 {[%clk 0:02:43]} 10. b4 {[%clk 0:02:56]}  axb4 {[%clk 0:02:42]} 11. axb4 {[%clk 0:02:57]}  Nd4 {[%clk 0:02:40]} 12. Bb2 {[%clk 0:02:53]}  Nxf3+ {[%clk 0:02:26]} 13. Bxf3 {[%clk 0:02:51]}  c6 {[%clk 0:02:27]} 14. b5 {[%clk 0:02:51]}  Bh3 {[%clk 0:02:25]} 15. Re1 {[%clk 0:02:49]}  d5 {[%clk 0:02:23]} 16. Qb3 {[%clk 0:02:48]}  d4 {[%clk 0:02:16]} 17. Ne4 {[%clk 0:02:48]}  Nxe4 {[%clk 0:02:16]} 18. Bxe4 {[%clk 0:02:48]}  c5 {[%clk 0:02:13]} 19. b6 {[%clk 0:02:47]}  f5 {[%clk 0:02:08]} 20. Bd5+ {[%clk 0:02:47]}  Kh8 {[%clk 0:02:07]} 21. Ba3 {[%clk 0:02:48]}  Qe7 {[%clk 0:02:05]} 22. Qb5 {[%clk 0:02:45]}  Rfc8 {[%clk 0:02:00]} 23. e3 {[%clk 0:02:45]}  dxe3 {[%clk 0:01:47]} 24. Rxe3 {[%clk 0:02:45]}  Bh6 {[%clk 0:01:42]} 25. Rxe5 {[%clk 0:02:41]}  Qxe5 {[%clk 0:01:32]} 26. Bb2 {[%clk 0:02:41]}  Qxb2 {[%clk 0:01:32]} 27. Rxb2 {[%clk 0:02:42]}  Bg7 {[%clk 0:01:31]} 28. Rb1 {[%clk 0:02:40]}  f4 {[%clk 0:01:30]} 29. Re1 {[%clk 0:02:37]}  fxg3 {[%clk 0:01:30]} 30. hxg3 {[%clk 0:02:36]}  Bf5 {[%clk 0:01:24]} 31. Bxb7 {[%clk 0:02:33]}  Rf8 {[%clk 0:01:17]} 32. Be4 {[%clk 0:02:31]}  Bd4 {[%clk 0:01:13]} 33. Bxf5 {[%clk 0:02:26]}  Rxf5 {[%clk 0:01:11]} 34. Re8+ {[%clk 0:02:26]}  Rxe8 {[%clk 0:01:10]} 35. Qxe8+ {[%clk 0:02:27]}  Kg7 {[%clk 0:01:10]} 36. b7 {[%clk 0:02:22]}  Rxf2 {[%clk 0:01:09]} 37. Qd7+ {[%clk 0:02:11]}  Kh6 {[%clk 0:01:06]} 38. Qxd4 {[%clk 0:02:11]}  cxd4 {[%clk 0:01:03]} 39. Kxf2 {[%clk 0:02:10]} 1-0


[Site "https://www.chess.com"]

[Event "Titled Tuesday Blitz April 19 Late 2022"]
[White "Musovic, Armin"]
[Black "Yedidia, Daniel"]
[WhiteFideId "939935"]
[BlackFideId "30905907"]
[WhiteElo "2255"]
[BlackElo "2616"]
[Result "0-1"]
[Round "05"]
[TimeControl "180+1"]
[Date "2022.04.19"]
[WhiteClock "0:01:58"]
[BlackClock "0:01:28"]

1. a3 {[%clk 0:02:41]}  e5 {[%clk 0:02:57]} 2. Nc3 {[%clk 0:02:42]}  d5 {[%clk 0:02:57]} 3. d4 {[%clk 0:02:42]}  e4 {[%clk 0:02:57]} 4. Bf4 {[%clk 0:02:42]}  c6 {[%clk 0:02:52]} 5. f3 {[%clk 0:02:42]}  f5 {[%clk 0:02:47]} 6. Qd2 {[%clk 0:02:42]}  Ne7 {[%clk 0:02:44]} 7. Nh3 {[%clk 0:02:38]}  Ng6 {[%clk 0:02:43]} 8. Bg5 {[%clk 0:02:39]}  Qb6 {[%clk 0:02:41]} 9. O-O-O {[%clk 0:02:39]}  h6 {[%clk 0:02:39]} 10. Be3 {[%clk 0:02:39]}  Bd6 {[%clk 0:02:36]} 11. Rg1 {[%clk 0:02:39]}  Qc7 {[%clk 0:02:32]} 12. f4 {[%clk 0:02:37]}  Be6 {[%clk 0:02:30]} 13. g3 {[%clk 0:02:37]}  Nd7 {[%clk 0:02:30]} 14. Bf2 {[%clk 0:02:37]}  b5 {[%clk 0:02:27]} 15. e3 {[%clk 0:02:38]}  a5 {[%clk 0:02:27]} 16. Be2 {[%clk 0:02:34]}  b4 {[%clk 0:02:24]} 17. Nb1 {[%clk 0:02:35]}  Nb6 {[%clk 0:02:07]} 18. Bh5 {[%clk 0:02:30]}  Bf7 {[%clk 0:02:07]} 19. g4 {[%clk 0:02:30]}  Nc4 {[%clk 0:02:06]} 20. Qe2 {[%clk 0:02:29]}  bxa3 {[%clk 0:02:03]} 21. bxa3 {[%clk 0:02:29]}  Qb6 {[%clk 0:01:43]} 22. c3 {[%clk 0:02:28]}  Qb3 {[%clk 0:01:38]} 23. Rd2 {[%clk 0:02:09]}  Rb8 {[%clk 0:01:33]} 24. Rb2 {[%clk 0:02:06]}  Nxb2 {[%clk 0:01:32]} 25. gxf5 {[%clk 0:02:02]}  Nd3+ {[%clk 0:01:28]} 26. Qxd3 {[%clk 0:01:58]}  exd3 {[%clk 0:01:28]} 0-1


[Site "https://www.chess.com"]

[Event "Titled Tuesday Blitz April 19 Late 2022"]
[White "Nakamura, Hikaru"]
[Black "Kaasen, Tor Fredrik"]
[WhiteFideId "2016192"]
[BlackFideId "1516647"]
[WhiteElo "2850"]
[BlackElo "2335"]
[Result "1-0"]
[Round "05"]
[TimeControl "180+1"]
[Date "2022.04.19"]
[WhiteClock "0:01:53"]
[BlackClock "0:00:21"]

1. Nf3 {[%clk 0:03:00]}  Nf6 {[%clk 0:02:59]} 2. b3 {[%clk 0:03:00]}  g6 {[%clk 0:03:00]} 3. d4 {[%clk 0:03:00]}  Bg7 {[%clk 0:03:00]} 4. Bb2 {[%clk 0:03:01]}  O-O {[%clk 0:03:01]} 5. e3 {[%clk 0:03:02]}  d6 {[%clk 0:03:02]} 6. Be2 {[%clk 0:03:01]}  e5 {[%clk 0:03:02]} 7. dxe5 {[%clk 0:03:01]}  dxe5 {[%clk 0:03:03]} 8. Qxd8 {[%clk 0:02:57]}  Rxd8 {[%clk 0:03:03]} 9. Nxe5 {[%clk 0:02:54]}  Ne4 {[%clk 0:02:29]} 10. Nd3 {[%clk 0:02:50]}  Bxb2 {[%clk 0:02:26]} 11. Nxb2 {[%clk 0:02:50]}  Nc6 {[%clk 0:02:27]} 12. a3 {[%clk 0:02:48]}  Bf5 {[%clk 0:02:22]} 13. Nd3 {[%clk 0:02:48]}  a5 {[%clk 0:02:11]} 14. g4 {[%clk 0:02:48]}  Be6 {[%clk 0:02:10]} 15. f3 {[%clk 0:02:48]}  Nf6 {[%clk 0:02:05]} 16. Nc3 {[%clk 0:02:46]}  Ne7 {[%clk 0:01:55]} 17. Nf4 {[%clk 0:02:39]}  Bd7 {[%clk 0:01:52]} 18. g5 {[%clk 0:02:39]}  Ne8 {[%clk 0:01:48]} 19. Kf2 {[%clk 0:02:39]}  Bc6 {[%clk 0:01:48]} 20. Rhd1 {[%clk 0:02:37]}  Nd6 {[%clk 0:01:47]} 21. e4 {[%clk 0:02:38]}  Kg7 {[%clk 0:01:41]} 22. h4 {[%clk 0:02:37]}  h6 {[%clk 0:01:41]} 23. Bd3 {[%clk 0:02:34]}  hxg5 {[%clk 0:01:36]} 24. hxg5 {[%clk 0:02:35]}  b5 {[%clk 0:01:36]} 25. Nce2 {[%clk 0:02:30]}  Bd7 {[%clk 0:01:28]} 26. Ng3 {[%clk 0:02:18]}  Nc6 {[%clk 0:01:19]} 27. Be2 {[%clk 0:02:17]}  Rh8 {[%clk 0:01:10]} 28. Nd5 {[%clk 0:02:15]}  Rh2+ {[%clk 0:01:08]} 29. Ke3 {[%clk 0:02:15]}  Rc8 {[%clk 0:01:01]} 30. Rh1 {[%clk 0:02:11]}  Rxh1 {[%clk 0:00:57]} 31. Rxh1 {[%clk 0:02:12]}  Ne5 {[%clk 0:00:58]} 32. Nf6 {[%clk 0:02:11]}  Be6 {[%clk 0:00:39]} 33. f4 {[%clk 0:02:11]}  Nd7 {[%clk 0:00:37]} 34. Rh7+ {[%clk 0:01:51]}  Kf8 {[%clk 0:00:37]} 35. Rh8+ {[%clk 0:01:51]}  Ke7 {[%clk 0:00:31]} 36. Rxc8 {[%clk 0:01:52]}  Nxc8 {[%clk 0:00:31]} 37. f5 {[%clk 0:01:53]}  gxf5 {[%clk 0:00:23]} 38. exf5 {[%clk 0:01:54]}  Bxb3 {[%clk 0:00:24]} 39. cxb3 {[%clk 0:01:53]}  Nxf6 {[%clk 0:00:24]} 40. gxf6+ {[%clk 0:01:53]}  Kxf6 {[%clk 0:00:25]} 41. Bxb5 {[%clk 0:01:54]}  Nd6 {[%clk 0:00:24]} 42. Ne4+ {[%clk 0:01:53]}  Kxf5 {[%clk 0:00:20]} 43. Nxd6+ {[%clk 0:01:53]}  cxd6 {[%clk 0:00:21]} 44. Bc4 {[%clk 0:01:53]} 1-0


[Site "https://www.chess.com"]

[Event "Titled Tuesday Blitz April 19 Late 2022"]
[White "Novikova, Galina"]
[Black "Adewumi, Tanitoluwa"]
[WhiteFideId "4157095"]
[BlackFideId "30966396"]
[WhiteElo "1863"]
[BlackElo "2525"]
[Result "0-1"]
[Round "05"]
[TimeControl "180+1"]
[Date "2022.04.19"]
[WhiteClock "0:00:01"]
[BlackClock "0:00:01"]

1. e4 {[%clk 0:03:00]}  c5 {[%clk 0:02:59]} 2. Nf3 {[%clk 0:03:00]}  a6 {[%clk 0:02:59]} 3. b4 {[%clk 0:03:00]}  cxb4 {[%clk 0:02:59]} 4. a3 {[%clk 0:02:59]}  b3 {[%clk 0:02:55]} 5. cxb3 {[%clk 0:02:58]}  Nf6 {[%clk 0:02:47]} 6. e5 {[%clk 0:02:58]}  Nd5 {[%clk 0:02:46]} 7. d4 {[%clk 0:02:55]}  e6 {[%clk 0:02:44]} 8. Bd3 {[%clk 0:02:54]}  d6 {[%clk 0:02:44]} 9. O-O {[%clk 0:02:53]}  Nc6 {[%clk 0:02:44]} 10. b4 {[%clk 0:02:45]}  Qc7 {[%clk 0:02:31]} 11. Qe2 {[%clk 0:02:39]}  Bd7 {[%clk 0:02:19]} 12. Bd2 {[%clk 0:02:39]}  Qb6 {[%clk 0:02:12]} 13. Qe4 {[%clk 0:02:19]}  f5 {[%clk 0:02:12]} 14. exf6 {[%clk 0:02:14]}  Nxf6 {[%clk 0:02:12]} 15. Qh4 {[%clk 0:02:09]}  Be7 {[%clk 0:02:08]} 16. Nc3 {[%clk 0:02:03]}  O-O {[%clk 0:01:46]} 17. Be3 {[%clk 0:01:28]}  Qd8 {[%clk 0:01:30]} 18. Ne4 {[%clk 0:01:12]}  Nxe4 {[%clk 0:01:20]} 19. Qxe4 {[%clk 0:01:11]}  Rf5 {[%clk 0:01:13]} 20. Qg4 {[%clk 0:00:57]}  Rf7 {[%clk 0:01:06]} 21. Qe4 {[%clk 0:00:51]}  Rf5 {[%clk 0:00:58]} 22. Qg4 {[%clk 0:00:51]}  Rf7 {[%clk 0:00:59]} 23. Qh5 {[%clk 0:00:41]}  g6 {[%clk 0:00:57]} 24. Qh6 {[%clk 0:00:26]}  Bf8 {[%clk 0:00:56]} 25. Qg5 {[%clk 0:00:24]}  Bg7 {[%clk 0:00:55]} 26. Qg3 {[%clk 0:00:23]}  Qe7 {[%clk 0:00:41]} 27. Bg5 {[%clk 0:00:21]}  Rxf3 {[%clk 0:00:37]} 28. gxf3 {[%clk 0:00:16]}  Qf8 {[%clk 0:00:38]} 29. Be3 {[%clk 0:00:14]}  e5 {[%clk 0:00:31]} 30. dxe5 {[%clk 0:00:10]}  Nxe5 {[%clk 0:00:31]} 31. Be4 {[%clk 0:00:09]}  Bc6 {[%clk 0:00:30]} 32. Kh1 {[%clk 0:00:07]}  Nxf3 {[%clk 0:00:25]} 33. Bxf3 {[%clk 0:00:05]}  Bxf3+ {[%clk 0:00:21]} 34. Kg1 {[%clk 0:00:05]}  Be5 {[%clk 0:00:22]} 35. Qg5 {[%clk 0:00:04]}  Qc8 {[%clk 0:00:17]} 36. Rad1 {[%clk 0:00:03]}  Qh3 {[%clk 0:00:17]} 37. Bd4 {[%clk 0:00:01]}  Bxh2# {[%clk 0:00:01]} 0-1


[Site "https://www.chess.com"]

[Event "Titled Tuesday Blitz April 19 Late 2022"]
[White "Oparin, Grigoriy"]
[Black "Kozak, Adam"]
[WhiteFideId "24125890"]
[BlackFideId "753246"]
[WhiteElo "2665"]
[BlackElo "2459"]
[Result "0-1"]
[Round "05"]
[TimeControl "180+1"]
[Date "2022.04.19"]
[WhiteClock "0:00:01"]
[BlackClock "0:00:19"]

1. Nf3 {[%clk 0:03:00]}  b6 {[%clk 0:02:59]} 2. g3 {[%clk 0:03:00]}  Bb7 {[%clk 0:02:59]} 3. d4 {[%clk 0:03:00]}  g6 {[%clk 0:03:00]} 4. c4 {[%clk 0:03:01]}  Bg7 {[%clk 0:03:00]} 5. Bg2 {[%clk 0:03:01]}  Nf6 {[%clk 0:03:01]} 6. O-O {[%clk 0:03:02]}  O-O {[%clk 0:03:01]} 7. Re1 {[%clk 0:03:03]}  d6 {[%clk 0:03:00]} 8. Bg5 {[%clk 0:02:58]}  Nbd7 {[%clk 0:03:00]} 9. Qc2 {[%clk 0:02:56]}  Ne4 {[%clk 0:02:55]} 10. Be3 {[%clk 0:02:53]}  Rb8 {[%clk 0:02:53]} 11. d5 {[%clk 0:02:41]}  Nef6 {[%clk 0:02:52]} 12. Nc3 {[%clk 0:02:40]}  e5 {[%clk 0:02:49]} 13. Bd2 {[%clk 0:02:36]}  Kh8 {[%clk 0:02:45]} 14. b4 {[%clk 0:02:34]}  e4 {[%clk 0:02:20]} 15. Nxe4 {[%clk 0:02:34]}  Nxe4 {[%clk 0:02:19]} 16. Qxe4 {[%clk 0:02:34]}  b5 {[%clk 0:02:11]} 17. Qc2 {[%clk 0:02:25]}  bxc4 {[%clk 0:02:10]} 18. e4 {[%clk 0:02:26]}  Nb6 {[%clk 0:02:07]} 19. a4 {[%clk 0:02:23]}  f5 {[%clk 0:02:07]} 20. Ng5 {[%clk 0:02:15]}  fxe4 {[%clk 0:02:07]} 21. Ne6 {[%clk 0:02:15]}  Qf6 {[%clk 0:02:07]} 22. Nxf8 {[%clk 0:02:12]}  Rxf8 {[%clk 0:02:06]} 23. Be3 {[%clk 0:01:54]}  Nxd5 {[%clk 0:02:04]} 24. Bxa7 {[%clk 0:01:37]}  Nxb4 {[%clk 0:01:58]} 25. Qxc4 {[%clk 0:01:31]}  c5 {[%clk 0:01:54]} 26. Rf1 {[%clk 0:00:59]}  Bd5 {[%clk 0:01:54]} 27. Qe2 {[%clk 0:00:52]}  Qf7 {[%clk 0:01:48]} 28. Bb6 {[%clk 0:00:48]}  Bxa1 {[%clk 0:01:12]} 29. Rxa1 {[%clk 0:00:47]}  Nd3 {[%clk 0:01:01]} 30. Rf1 {[%clk 0:00:45]}  Ne5 {[%clk 0:01:01]} 31. Rd1 {[%clk 0:00:39]}  Bc4 {[%clk 0:00:55]} 32. Qb2 {[%clk 0:00:37]}  Qf6 {[%clk 0:00:46]} 33. Rd2 {[%clk 0:00:17]}  Bd3 {[%clk 0:00:41]} 34. a5 {[%clk 0:00:16]}  h5 {[%clk 0:00:33]} 35. h4 {[%clk 0:00:13]}  Kh7 {[%clk 0:00:30]} 36. Bc7 {[%clk 0:00:07]}  Rf7 {[%clk 0:00:29]} 37. Bb6 {[%clk 0:00:06]}  Nf3+ {[%clk 0:00:26]} 38. Bxf3 {[%clk 0:00:06]}  Qxf3 {[%clk 0:00:27]} 39. Qa2 {[%clk 0:00:01]}  e3 {[%clk 0:00:26]} 40. fxe3 {[%clk 0:00:02]}  Be4 {[%clk 0:00:21]} 41. Rg2 {[%clk 0:00:01]}  Qf1+ {[%clk 0:00:19]} 42. Kh2 {[%clk 0:00:01]}  Bxg2 {[%clk 0:00:19]} 43. Qxg2 {[%clk 0:00:01]}  Rf2 {[%clk 0:00:19]} 0-1


[Site "https://www.chess.com"]

[Event "Titled Tuesday Blitz April 19 Late 2022"]
[White "Perrine, Dalton"]
[Black "Leitao, Rafael"]
[WhiteFideId "2048434"]
[BlackFideId "2101246"]
[WhiteElo "2479"]
[BlackElo "2609"]
[Result "1-0"]
[Round "05"]
[TimeControl "180+1"]
[Date "2022.04.19"]
[WhiteClock "0:00:03"]
[BlackClock "0:00:15"]

1. Nf3 {[%clk 0:03:00]}  Nf6 {[%clk 0:02:59]} 2. g3 {[%clk 0:03:01]}  d5 {[%clk 0:02:59]} 3. Bg2 {[%clk 0:03:01]}  e6 {[%clk 0:03:00]} 4. O-O {[%clk 0:03:01]}  Be7 {[%clk 0:03:00]} 5. d4 {[%clk 0:03:02]}  O-O {[%clk 0:03:00]} 6. c4 {[%clk 0:03:02]}  dxc4 {[%clk 0:03:00]} 7. Qc2 {[%clk 0:03:03]}  b5 {[%clk 0:02:59]} 8. a4 {[%clk 0:03:01]}  Bb7 {[%clk 0:02:54]} 9. axb5 {[%clk 0:03:00]}  a6 {[%clk 0:02:55]} 10. bxa6 {[%clk 0:02:58]}  Nxa6 {[%clk 0:02:52]} 11. Qxc4 {[%clk 0:02:49]}  Bd5 {[%clk 0:02:49]} 12. Qc3 {[%clk 0:02:46]}  Ne4 {[%clk 0:02:33]} 13. Qe3 {[%clk 0:02:47]}  c5 {[%clk 0:02:23]} 14. Nc3 {[%clk 0:02:40]}  cxd4 {[%clk 0:02:04]} 15. Nxd4 {[%clk 0:02:33]}  Nxc3 {[%clk 0:01:59]} 16. bxc3 {[%clk 0:02:32]}  Bxg2 {[%clk 0:01:52]} 17. Kxg2 {[%clk 0:02:33]}  Bf6 {[%clk 0:01:52]} 18. Ba3 {[%clk 0:02:24]}  Re8 {[%clk 0:01:43]} 19. Rfd1 {[%clk 0:02:24]}  Qc8 {[%clk 0:01:33]} 20. Qf3 {[%clk 0:02:12]}  Nc7 {[%clk 0:01:28]} 21. Bb2 {[%clk 0:01:00]}  Rb8 {[%clk 0:01:15]} 22. Ba3 {[%clk 0:00:52]}  Nd5 {[%clk 0:01:12]} 23. Rac1 {[%clk 0:00:45]}  Qc4 {[%clk 0:01:00]} 24. e4 {[%clk 0:00:45]}  Nc7 {[%clk 0:00:55]} 25. Bd6 {[%clk 0:00:37]}  Be7 {[%clk 0:00:33]} 26. Bxc7 {[%clk 0:00:30]}  Qxc7 {[%clk 0:00:33]} 27. c4 {[%clk 0:00:31]}  Bc5 {[%clk 0:00:32]} 28. Nb5 {[%clk 0:00:30]}  Qe5 {[%clk 0:00:30]} 29. Rd7 {[%clk 0:00:27]}  Rf8 {[%clk 0:00:28]} 30. Qd3 {[%clk 0:00:13]}  Ra8 {[%clk 0:00:26]} 31. Rc2 {[%clk 0:00:09]}  Qf6 {[%clk 0:00:24]} 32. Qf3 {[%clk 0:00:07]}  Qe5 {[%clk 0:00:24]} 33. Qd3 {[%clk 0:00:07]}  h5 {[%clk 0:00:24]} 34. f4 {[%clk 0:00:07]}  Qa1 {[%clk 0:00:23]} 35. Qf1 {[%clk 0:00:05]}  Qa4 {[%clk 0:00:23]} 36. Rdd2 {[%clk 0:00:05]}  Qb3 {[%clk 0:00:20]} 37. Qd3 {[%clk 0:00:05]}  Qb1 {[%clk 0:00:19]} 38. Rd1 {[%clk 0:00:05]}  Qb4 {[%clk 0:00:19]} 39. Qe2 {[%clk 0:00:03]}  Rad8 {[%clk 0:00:19]} 40. Rcd2 {[%clk 0:00:04]}  Ra8 {[%clk 0:00:19]} 41. Rd7 {[%clk 0:00:04]}  Qb3 {[%clk 0:00:18]} 42. R1d2 {[%clk 0:00:05]}  Ra1 {[%clk 0:00:18]} 43. Nd4 {[%clk 0:00:04]}  Qb1 {[%clk 0:00:18]} 44. Nf3 {[%clk 0:00:03]}  Qh1+ {[%clk 0:00:18]} 45. Kh3 {[%clk 0:00:04]}  Rf1 {[%clk 0:00:18]} 46. Ng5 {[%clk 0:00:03]}  Qg1 {[%clk 0:00:15]} 47. Qxh5 {[%clk 0:00:03]} 1-0


[Site "https://www.chess.com"]